[Event "*** Titled Tuesday Blitz"]
[Site "Chess.com"]
[Date "2020.11.03"]
[Round "3"]
[White "Olga_Zhuravleva"]
[Black "zurzan"]
[Result "1-0"]
[WhiteElo "2319"]
[BlackElo "2057"]
[TimeControl "180+1"]
[EndTime "10:30:59 PST"]
[Termination "Olga_Zhuravleva won on time"]

1. e4 {[%clk 0:03:00.9]} 1... Nf6 {[%clk 0:02:59]} 2. e5 {[%clk 0:02:59.9]} 2...
Nd5 {[%clk 0:02:59.2]} 3. c4 {[%clk 0:03:00.5]} 3... Nb6 {[%clk 0:02:59.2]} 4.
c5 {[%clk 0:03:00.8]} 4... Nd5 {[%clk 0:02:58.9]} 5. Bc4 {[%clk 0:03:01.5]} 5...
e6 {[%clk 0:02:58.9]} 6. d4 {[%clk 0:03:01.2]} 6... c6 {[%clk 0:02:58.3]} 7. Nf3
{[%clk 0:02:59.3]} 7... b6 {[%clk 0:02:58.4]} 8. Bxd5 {[%clk 0:02:53.3]} 8...
cxd5 {[%clk 0:02:57.4]} 9. b4 {[%clk 0:02:51.3]} 9... bxc5 {[%clk 0:02:56.2]}
10. bxc5 {[%clk 0:02:51]} 10... Nc6 {[%clk 0:02:49.4]} 11. O-O {[%clk
0:02:50.6]} 11... Be7 {[%clk 0:02:48.2]} 12. Nc3 {[%clk 0:02:51]} 12... O-O
{[%clk 0:02:45.5]} 13. Rb1 {[%clk 0:02:46.9]} 13... Ba6 {[%clk 0:02:44.9]} 14.
Re1 {[%clk 0:02:45.9]} 14... Bc4 {[%clk 0:02:44.6]} 15. Be3 {[%clk 0:02:37.1]}
15... Rb8 {[%clk 0:02:44.4]} 16. Nd2 {[%clk 0:02:35.6]} 16... Rxb1 {[%clk
0:02:43.8]} 17. Qxb1 {[%clk 0:02:33.9]} 17... Ba6 {[%clk 0:02:34.5]} 18. f4
{[%clk 0:02:32.2]} 18... f6 {[%clk 0:02:33.1]} 19. h3 {[%clk 0:02:25.9]} 19...
f5 {[%clk 0:02:32.6]} 20. Kh1 {[%clk 0:02:22.8]} 20... Bh4 {[%clk 0:02:31.7]}
21. Rc1 {[%clk 0:02:20.9]} 21... Qb8 {[%clk 0:02:09]} 22. Qxb8 {[%clk
0:01:58.4]} 22... Rxb8 {[%clk 0:02:07.4]} 23. Rb1 {[%clk 0:01:58.9]} 23... Be1
{[%clk 0:01:38.5]} 24. Rxe1 {[%clk 0:01:55.9]} 24... Rb2 {[%clk 0:01:35.3]} 25.
Rb1 {[%clk 0:01:54.8]} 25... Rc2 {[%clk 0:01:34]} 26. Rb3 {[%clk 0:01:33.5]}
26... h6 {[%clk 0:01:31.1]} 27. Kg1 {[%clk 0:01:31.5]} 27... Kf7 {[%clk
0:01:29.3]} 28. Nf3 {[%clk 0:01:26.4]} 28... Bc4 {[%clk 0:01:17.2]} 29. Ra3
{[%clk 0:01:25.1]} 29... a5 {[%clk 0:01:14]} 30. Ne1 {[%clk 0:01:07.9]} 30...
Rb2 {[%clk 0:01:10]} 31. Bc1 {[%clk 0:01:04.4]} 31... Rb7 {[%clk 0:01:03.2]} 32.
Nf3 {[%clk 0:01:03.5]} 32... g6 {[%clk 0:01:01.4]} 33. Kf2 {[%clk 0:01:02.6]}
33... Nb4 {[%clk 0:00:56.7]} 34. Kg3 {[%clk 0:00:42.1]} 34... Nd3 {[%clk
0:00:56.8]} 35. Be3 {[%clk 0:00:37.3]} 35... g5 {[%clk 0:00:51.7]} 36. fxg5
{[%clk 0:00:35.1]} 36... hxg5 {[%clk 0:00:52.1]} 37. Nxg5+ {[%clk 0:00:35.1]}
37... Kg6 {[%clk 0:00:51.8]} 38. Nf3 {[%clk 0:00:34.3]} 38... Ra7 {[%clk
0:00:18.8]} 39. Na4 {[%clk 0:00:29.5]} 39... Nb4 {[%clk 0:00:15.1]} 40. Nb6
{[%clk 0:00:20.6]} 40... Bxa2 {[%clk 0:00:14.9]} 41. Bd2 {[%clk 0:00:20.9]}
41... f4+ {[%clk 0:00:02.5]} 42. Kh2 {[%clk 0:00:19.6]} 42... Nc2 {[%clk
0:00:01.4]} 43. Rxa2 {[%clk 0:00:19.1]} 1-0

[Event "*** Titled Tuesday Blitz"]
[Site "Chess.com"]
[Date "2020.11.03"]
[Round "3"]
[White "albi1999"]
[Black "Flopezin"]
[Result "1-0"]
[WhiteElo "2573"]
[BlackElo "2357"]
[TimeControl "180+1"]
[EndTime "10:31:00 PST"]
[Termination "albi1999 won by checkmate"]

1. d4 {[%clk 0:03:00.9]} 1... Nf6 {[%clk 0:02:59.7]} 2. c4 {[%clk 0:03:00.3]}
2... e6 {[%clk 0:03:00.3]} 3. Nf3 {[%clk 0:03:00.1]} 3... c5 {[%clk 0:02:59.8]}
4. d5 {[%clk 0:03:00]} 4... d6 {[%clk 0:03:00.3]} 5. Nc3 {[%clk 0:02:59.9]} 5...
exd5 {[%clk 0:03:00.9]} 6. cxd5 {[%clk 0:03:00.8]} 6... g6 {[%clk 0:03:01.3]} 7.
Nd2 {[%clk 0:02:59.9]} 7... Nbd7 {[%clk 0:02:57.3]} 8. e4 {[%clk 0:02:59.2]}
8... a6 {[%clk 0:02:52.2]} 9. a4 {[%clk 0:02:58.8]} 9... Bg7 {[%clk 0:02:52.8]}
10. Be2 {[%clk 0:02:59.2]} 10... O-O {[%clk 0:02:52.7]} 11. O-O {[%clk
0:02:59.8]} 11... Re8 {[%clk 0:02:41.7]} 12. Qc2 {[%clk 0:02:54.3]} 12... Rb8
{[%clk 0:02:35.9]} 13. h3 {[%clk 0:02:34.1]} 13... g5 {[%clk 0:02:23.7]} 14. f4
{[%clk 0:02:34]} 14... gxf4 {[%clk 0:02:23.6]} 15. Rxf4 {[%clk 0:02:34.9]} 15...
Kh8 {[%clk 0:02:22]} 16. Nc4 {[%clk 0:02:25.7]} 16... Ne5 {[%clk 0:02:16.2]} 17.
Ne3 {[%clk 0:02:22.1]} 17... Rg8 {[%clk 0:02:06.7]} 18. Nf5 {[%clk 0:02:16.8]}
18... Bxf5 {[%clk 0:02:06.7]} 19. Rxf5 {[%clk 0:02:17.7]} 19... Qe7 {[%clk
0:02:06.7]} 20. Bg5 {[%clk 0:02:16.1]} 20... h6 {[%clk 0:01:42.4]} 21. Bd2
{[%clk 0:02:15.6]} 21... Nfd7 {[%clk 0:01:35.6]} 22. Raf1 {[%clk 0:02:14.2]}
22... Rbe8 {[%clk 0:01:29.1]} 23. Qc1 {[%clk 0:02:14]} 23... Kh7 {[%clk
0:01:28.8]} 24. Rh5 {[%clk 0:02:10.2]} 24... Nf6 {[%clk 0:01:20]} 25. Rhf5
{[%clk 0:02:09.4]} 25... Nfd7 {[%clk 0:01:18.4]} 26. Bh5 {[%clk 0:02:06.6]}
26... Ref8 {[%clk 0:01:15.1]} 27. Qc2 {[%clk 0:01:57.8]} 27... c4 {[%clk
0:01:14.7]} 28. Be3 {[%clk 0:01:54.5]} 28... Ng6 {[%clk 0:00:53.8]} 29. Be2
{[%clk 0:01:48.8]} 29... Nde5 {[%clk 0:00:53.6]} 30. Qd2 {[%clk 0:01:44.9]}
30... Nh4 {[%clk 0:00:52.4]} 31. Rh5 {[%clk 0:01:41]} 31... Rh8 {[%clk
0:00:40.6]} 32. Bg5 {[%clk 0:01:35.5]} 32... Nef3+ {[%clk 0:00:33.7]} 33. Bxf3
{[%clk 0:01:11.2]} 33... Nxf3+ {[%clk 0:00:30.1]} 34. Rxf3 {[%clk 0:01:12.1]}
34... Qe5 {[%clk 0:00:30.3]} 35. Rf5 {[%clk 0:01:01.7]} 35... Qd4+ {[%clk
0:00:25.6]} 36. Be3 {[%clk 0:00:59.8]} 36... Qxd2 {[%clk 0:00:24.8]} 37. Bxd2
{[%clk 0:01:00.7]} 37... Kg6 {[%clk 0:00:24]} 38. Rf3 {[%clk 0:00:57.4]} 38...
Re8 {[%clk 0:00:23.8]} 39. Rhf5 {[%clk 0:00:54]} 39... Re7 {[%clk 0:00:24.2]}
40. Rg3+ {[%clk 0:00:51.5]} 40... Kh7 {[%clk 0:00:23.8]} 41. Rg4 {[%clk
0:00:51.3]} 41... b5 {[%clk 0:00:23.1]} 42. axb5 {[%clk 0:00:51.1]} 42... axb5
{[%clk 0:00:24]} 43. Nxb5 {[%clk 0:00:50.1]} 43... Rb8 {[%clk 0:00:18.2]} 44.
Nxd6 {[%clk 0:00:48.5]} 44... Rxb2 {[%clk 0:00:19.1]} 45. Bf4 {[%clk 0:00:44.3]}
45... Rb1+ {[%clk 0:00:19]} 46. Kh2 {[%clk 0:00:44.2]} 46... Bd4 {[%clk
0:00:18.5]} 47. Rh5 {[%clk 0:00:37.9]} 47... Bg7 {[%clk 0:00:11.7]} 48. Bxh6
{[%clk 0:00:31.1]} 48... Bxh6 {[%clk 0:00:11.1]} 49. Nf5 {[%clk 0:00:31.2]}
49... Rc7 {[%clk 0:00:07.6]} 50. Rxh6# {[%clk 0:00:31]} 1-0

[Event "*** Titled Tuesday Blitz"]
[Site "Chess.com"]
[Date "2020.11.03"]
[Round "3"]
[White "kleopl"]
[Black "PaulfromSPb"]
[Result "0-1"]
[WhiteElo "2440"]
[BlackElo "2707"]
[TimeControl "180+1"]
[EndTime "10:31:03 PST"]
[Termination "PaulfromSPb won on time"]

1. c4 {[%clk 0:03:00.9]} 1... e5 {[%clk 0:02:59.2]} 2. Nc3 {[%clk 0:03:00.7]}
2... d6 {[%clk 0:02:58.2]} 3. g3 {[%clk 0:02:59.5]} 3... Nc6 {[%clk 0:02:56.7]}
4. Bg2 {[%clk 0:02:59.6]} 4... f5 {[%clk 0:02:57.6]} 5. e3 {[%clk 0:02:58.4]}
5... Nf6 {[%clk 0:02:57.4]} 6. Nge2 {[%clk 0:02:58.6]} 6... g5 {[%clk
0:02:56.2]} 7. f4 {[%clk 0:02:54.1]} 7... h6 {[%clk 0:02:49.1]} 8. d3 {[%clk
0:02:50.4]} 8... Bg7 {[%clk 0:02:48.7]} 9. O-O {[%clk 0:02:49.9]} 9... O-O
{[%clk 0:02:48.4]} 10. Rb1 {[%clk 0:02:49.6]} 10... a5 {[%clk 0:02:43.8]} 11. a3
{[%clk 0:02:49.1]} 11... Ne7 {[%clk 0:02:43.9]} 12. b4 {[%clk 0:02:48.1]} 12...
axb4 {[%clk 0:02:44.8]} 13. axb4 {[%clk 0:02:48.5]} 13... Ng6 {[%clk 0:02:38.3]}
14. b5 {[%clk 0:02:45.8]} 14... exf4 {[%clk 0:02:38.2]} 15. exf4 {[%clk
0:02:42]} 15... gxf4 {[%clk 0:02:23.6]} 16. Nxf4 {[%clk 0:02:41.2]} 16... Nxf4
{[%clk 0:02:22.2]} 17. Bxf4 {[%clk 0:02:42.1]} 17... Ng4 {[%clk 0:02:22.5]} 18.
Nd5 {[%clk 0:02:36.1]} 18... Bd4+ {[%clk 0:02:21.6]} 19. Kh1 {[%clk 0:02:31.4]}
19... c6 {[%clk 0:02:18.3]} 20. bxc6 {[%clk 0:02:30.1]} 20... bxc6 {[%clk
0:02:19.2]} 21. Nb4 {[%clk 0:02:26.2]} 21... Bd7 {[%clk 0:02:14]} 22. Qd2 {[%clk
0:02:14]} 22... Qf6 {[%clk 0:01:48.7]} 23. Nxc6 {[%clk 0:02:09]} 23... Bxc6
{[%clk 0:01:47.6]} 24. Bxc6 {[%clk 0:02:09.9]} 24... Ra3 {[%clk 0:01:46.8]} 25.
h3 {[%clk 0:01:57.5]} 25... Ne5 {[%clk 0:01:46.1]} 26. Bxe5 {[%clk 0:01:35.5]}
26... dxe5 {[%clk 0:01:43.4]} 27. Bd5+ {[%clk 0:01:35.1]} 27... Kh8 {[%clk
0:01:43.8]} 28. Rb7 {[%clk 0:01:33.2]} 28... f4 {[%clk 0:01:38.3]} 29. gxf4
{[%clk 0:01:29.9]} 29... exf4 {[%clk 0:01:39.2]} 30. Qg2 {[%clk 0:01:10.6]}
30... Ra7 {[%clk 0:01:32.1]} 31. Rxa7 {[%clk 0:00:32.9]} 31... Bxa7 {[%clk
0:01:33]} 32. Qg4 {[%clk 0:00:28.8]} 32... Be3 {[%clk 0:01:23.5]} 33. Qe6 {[%clk
0:00:16.8]} 33... Qg5 {[%clk 0:01:19.8]} 34. Qg4 {[%clk 0:00:15.3]} 34... Qf6
{[%clk 0:01:14]} 35. Qe6 {[%clk 0:00:15.2]} 35... Qg7 {[%clk 0:01:10.6]} 36. Qg4
{[%clk 0:00:14.8]} 36... Qh7 {[%clk 0:00:58.1]} 37. Be4 {[%clk 0:00:13.6]} 37...
Qe7 {[%clk 0:00:54.3]} 38. Qg6 {[%clk 0:00:13.5]} 38... Rf6 {[%clk 0:00:53.9]}
39. Qg4 {[%clk 0:00:11.9]} 39... Re6 {[%clk 0:00:52.6]} 40. Rb1 {[%clk
0:00:11.2]} 40... Bb6 {[%clk 0:00:30.8]} 41. Qf5 {[%clk 0:00:09.5]} 41... Rf6
{[%clk 0:00:29]} 42. Qg4 {[%clk 0:00:06.2]} 42... Qf8 {[%clk 0:00:24.1]} 43. Qh5
{[%clk 0:00:03.5]} 43... f3 {[%clk 0:00:21.8]} 44. Bxf3 {[%clk 0:00:02.7]} 44...
Be3 {[%clk 0:00:21.8]} 0-1

[Event "*** Titled Tuesday Blitz"]
[Site "Chess.com"]
[Date "2020.11.03"]
[Round "3"]
[White "dopolian"]
[Black "Borsuk_Konstantin"]
[Result "0-1"]
[WhiteElo "2377"]
[BlackElo "2591"]
[TimeControl "180+1"]
[EndTime "10:31:03 PST"]
[Termination "Borsuk_Konstantin won by resignation"]

1. Nf3 {[%clk 0:03:00.9]} 1... b6 {[%clk 0:02:59.6]} 2. g3 {[%clk 0:03:00.8]}
2... Bb7 {[%clk 0:03:00.2]} 3. Bg2 {[%clk 0:03:01.7]} 3... Nf6 {[%clk
0:02:59.1]} 4. O-O {[%clk 0:02:59.2]} 4... g6 {[%clk 0:02:59.3]} 5. c4 {[%clk
0:02:58.7]} 5... Bg7 {[%clk 0:02:59.4]} 6. Nc3 {[%clk 0:02:53.9]} 6... O-O
{[%clk 0:02:59.4]} 7. d4 {[%clk 0:02:53]} 7... Ne4 {[%clk 0:02:58.7]} 8. Qc2
{[%clk 0:02:46.7]} 8... Nxc3 {[%clk 0:02:55.1]} 9. Qxc3 {[%clk 0:02:47.6]} 9...
c5 {[%clk 0:02:50.2]} 10. e3 {[%clk 0:02:42.1]} 10... cxd4 {[%clk 0:02:39.2]}
11. exd4 {[%clk 0:02:36.8]} 11... d5 {[%clk 0:02:36]} 12. Ne5 {[%clk 0:02:24.2]}
12... e6 {[%clk 0:01:48.2]} 13. Bf4 {[%clk 0:02:20.2]} 13... Nd7 {[%clk
0:01:30.3]} 14. b3 {[%clk 0:02:07.1]} 14... Rc8 {[%clk 0:01:24.5]} 15. Rac1
{[%clk 0:02:03.3]} 15... Nxe5 {[%clk 0:01:23.1]} 16. Bxe5 {[%clk 0:01:57.8]}
16... Bxe5 {[%clk 0:01:08.5]} 17. dxe5 {[%clk 0:01:58.7]} 17... Qe7 {[%clk
0:01:08.2]} 18. Qd2 {[%clk 0:01:54.4]} 18... dxc4 {[%clk 0:01:07.4]} 19. bxc4
{[%clk 0:01:47.5]} 19... Rc5 {[%clk 0:01:04.5]} 20. f4 {[%clk 0:01:10.4]} 20...
Rfc8 {[%clk 0:01:03.7]} 21. Rfd1 {[%clk 0:00:44.9]} 21... Bxg2 {[%clk
0:01:02.1]} 22. Kxg2 {[%clk 0:00:38.8]} 22... Rxc4 {[%clk 0:00:44.5]} 23. Rxc4
{[%clk 0:00:38.1]} 23... Rxc4 {[%clk 0:00:44.8]} 24. Qd8+ {[%clk 0:00:38.2]}
24... Qxd8 {[%clk 0:00:44.1]} 25. Rxd8+ {[%clk 0:00:39.1]} 25... Kg7 {[%clk
0:00:44.3]} 26. Rd2 {[%clk 0:00:34.6]} 26... Rc3 {[%clk 0:00:41.3]} 27. h4
{[%clk 0:00:27.8]} 27... Ra3 {[%clk 0:00:40]} 28. Rc2 {[%clk 0:00:26.4]} 28...
h5 {[%clk 0:00:37.9]} 29. Kf2 {[%clk 0:00:25.9]} 29... b5 {[%clk 0:00:36.2]} 30.
Rb2 {[%clk 0:00:16.1]} 30... a6 {[%clk 0:00:36.1]} 31. Rd2 {[%clk 0:00:16.5]}
31... b4 {[%clk 0:00:36.1]} 32. Kg2 {[%clk 0:00:15]} 32... a5 {[%clk 0:00:36.2]}
33. Kh3 {[%clk 0:00:15]} 33... Kf8 {[%clk 0:00:35.8]} 34. Kh2 {[%clk 0:00:10.3]}
34... Ke7 {[%clk 0:00:36.1]} 35. Kh3 {[%clk 0:00:10.6]} 35... a4 {[%clk
0:00:32.6]} 36. Kh2 {[%clk 0:00:09.6]} 36... b3 {[%clk 0:00:31.9]} 37. axb3
{[%clk 0:00:10.5]} 37... axb3 {[%clk 0:00:32.3]} 38. Kh3 {[%clk 0:00:09.8]}
38... Ra7 {[%clk 0:00:28.5]} 39. Rb2 {[%clk 0:00:07]} 39... Rb7 {[%clk
0:00:28.9]} 40. Kg2 {[%clk 0:00:07.6]} 40... Kd7 {[%clk 0:00:29.6]} 41. Kf3
{[%clk 0:00:08.2]} 41... Kc6 {[%clk 0:00:30.3]} 42. Ke3 {[%clk 0:00:08.9]} 42...
Kc5 {[%clk 0:00:30.7]} 43. Kd3 {[%clk 0:00:09.4]} 43... Kb4 {[%clk 0:00:26.8]}
44. Rb1 {[%clk 0:00:07.6]} 44... Rd7+ {[%clk 0:00:26.7]} 45. Ke3 {[%clk
0:00:06.9]} 45... Rd5 {[%clk 0:00:25.8]} 46. Kf3 {[%clk 0:00:06.3]} 46... Kc3
{[%clk 0:00:23]} 47. g4 {[%clk 0:00:06.6]} 47... b2 {[%clk 0:00:21.2]} 48. gxh5
{[%clk 0:00:03.4]} 48... gxh5 {[%clk 0:00:20.9]} 49. Ke4 {[%clk 0:00:03.5]}
49... Kc2 {[%clk 0:00:20.4]} 0-1

[Event "*** Titled Tuesday Blitz"]
[Site "Chess.com"]
[Date "2020.11.03"]
[Round "3"]
[White "ARTHURMOTIVATOR"]
[Black "winniethepooh04"]
[Result "1/2-1/2"]
[WhiteElo "2386"]
[BlackElo "2237"]
[TimeControl "180+1"]
[EndTime "10:31:04 PST"]
[Termination "Game drawn by repetition"]

1. e4 {[%clk 0:03:00.9]} 1... e6 {[%clk 0:03:00.2]} 2. b3 {[%clk 0:02:56.9]}
2... d5 {[%clk 0:03:00.1]} 3. Bb2 {[%clk 0:02:55.3]} 3... Nf6 {[%clk 0:03:00.6]}
4. e5 {[%clk 0:02:53.8]} 4... Nfd7 {[%clk 0:03:00.1]} 5. Qg4 {[%clk 0:02:54]}
5... c5 {[%clk 0:02:58.7]} 6. f4 {[%clk 0:02:52.8]} 6... Nc6 {[%clk 0:02:58.1]}
7. Nf3 {[%clk 0:02:52.9]} 7... g6 {[%clk 0:02:46.7]} 8. Be2 {[%clk 0:02:50.6]}
8... Be7 {[%clk 0:02:46.5]} 9. O-O {[%clk 0:02:42.7]} 9... h5 {[%clk 0:02:43.6]}
10. Qg3 {[%clk 0:02:33.9]} 10... h4 {[%clk 0:02:43.4]} 11. Qh3 {[%clk
0:02:28.8]} 11... b6 {[%clk 0:02:33]} 12. c3 {[%clk 0:02:23.7]} 12... Bb7 {[%clk
0:02:32.6]} 13. Na3 {[%clk 0:02:20.4]} 13... a6 {[%clk 0:02:32]} 14. Nc2 {[%clk
0:02:18.8]} 14... Qc7 {[%clk 0:02:31.9]} 15. d4 {[%clk 0:02:16.4]} 15... O-O-O
{[%clk 0:02:32.1]} 16. Ng5 {[%clk 0:02:03.9]} 16... Rdf8 {[%clk 0:02:24]} 17.
Rac1 {[%clk 0:01:56.2]} 17... b5 {[%clk 0:02:22.4]} 18. a4 {[%clk 0:01:42.4]}
18... bxa4 {[%clk 0:02:19.3]} 19. bxa4 {[%clk 0:01:43.3]} 19... Kb8 {[%clk
0:02:19.1]} 20. c4 {[%clk 0:01:35.1]} 20... dxc4 {[%clk 0:02:17.7]} 21. Bxc4
{[%clk 0:01:31]} 21... cxd4 {[%clk 0:02:16.6]} 22. Nxd4 {[%clk 0:01:25.9]} 22...
Nxd4 {[%clk 0:02:15.9]} 23. Bxd4 {[%clk 0:01:24]} 23... Bc5 {[%clk 0:02:14.6]}
24. Bxc5 {[%clk 0:01:05.7]} 24... Qxc5+ {[%clk 0:02:13.6]} 25. Kh1 {[%clk
0:01:05.6]} 25... Qb4 {[%clk 0:02:09.4]} 26. Qd3 {[%clk 0:00:57.9]} 26... Nc5
{[%clk 0:02:07.3]} 27. Qe2 {[%clk 0:00:58.3]} 27... Ka7 {[%clk 0:01:54.7]} 28.
Qe3 {[%clk 0:00:49.9]} 28... Ka8 {[%clk 0:01:50.7]} 29. Qe2 {[%clk 0:00:38.4]}
29... h3 {[%clk 0:01:50.5]} 30. Nf3 {[%clk 0:00:23.7]} 30... hxg2+ {[%clk
0:01:49.9]} 31. Kxg2 {[%clk 0:00:22.4]} 31... Rc8 {[%clk 0:01:38.3]} 32. Rb1
{[%clk 0:00:20.2]} 32... Qxa4 {[%clk 0:01:37.5]} 33. Ra1 {[%clk 0:00:18.9]}
33... Qc6 {[%clk 0:01:35.5]} 34. Bb5 {[%clk 0:00:09.4]} 34... Qd5 {[%clk
0:01:21.8]} 35. Bxa6 {[%clk 0:00:08.3]} 35... Nxa6 {[%clk 0:01:16.2]} 36. Rxa6+
{[%clk 0:00:09.2]} 36... Kb8 {[%clk 0:01:16.5]} 37. Rb1 {[%clk 0:00:06.8]} 37...
Kc7 {[%clk 0:01:08.4]} 38. Ra7 {[%clk 0:00:05.5]} 38... Rb8 {[%clk 0:00:59.6]}
39. Rc1+ {[%clk 0:00:05.1]} 39... Kb6 {[%clk 0:00:58.5]} 40. Ra3 {[%clk
0:00:03.9]} 40... Rhc8 {[%clk 0:00:43.2]} 41. Qb2+ {[%clk 0:00:03.8]} 41... Qb5
{[%clk 0:00:43]} 42. Qd4+ {[%clk 0:00:04.5]} 42... Rc5 {[%clk 0:00:40]} 43. Qd6+
{[%clk 0:00:04.6]} 43... Rc6 {[%clk 0:00:36]} 44. Qxb8 {[%clk 0:00:02.6]} 44...
Rxc1 {[%clk 0:00:32.3]} 45. Qd8+ {[%clk 0:00:01.1]} 45... Rc7 {[%clk 0:00:31]}
46. Qd6+ {[%clk 0:00:02]} 46... Rc6 {[%clk 0:00:31.1]} 47. Qd8+ {[%clk
0:00:02.9]} 47... Rc7 {[%clk 0:00:30.2]} 48. Qd6+ {[%clk 0:00:03.8]} 48... Qc6
{[%clk 0:00:30.8]} 49. Qb4+ {[%clk 0:00:03.6]} 49... Qb5 {[%clk 0:00:29.8]} 50.
Qd6+ {[%clk 0:00:04.5]} 1/2-1/2

[Event "*** Titled Tuesday Blitz"]
[Site "Chess.com"]
[Date "2020.11.03"]
[Round "3"]
[White "Alexchess1984"]
[Black "chessmachine14"]
[Result "1-0"]
[WhiteElo "2560"]
[BlackElo "2353"]
[TimeControl "180+1"]
[EndTime "10:31:06 PST"]
[Termination "Alexchess1984 won on time"]

1. e4 {[%clk 0:03:00.9]} 1... c5 {[%clk 0:02:50.6]} 2. c3 {[%clk 0:02:59.1]}
2... Nf6 {[%clk 0:02:49.6]} 3. e5 {[%clk 0:02:59.2]} 3... Nd5 {[%clk 0:02:49.7]}
4. Bc4 {[%clk 0:02:59.5]} 4... Nb6 {[%clk 0:02:48.6]} 5. Bb3 {[%clk 0:02:59.7]}
5... c4 {[%clk 0:02:48.9]} 6. Bc2 {[%clk 0:02:59.6]} 6... Nc6 {[%clk 0:02:48.6]}
7. Nf3 {[%clk 0:03:00.2]} 7... d6 {[%clk 0:02:43.5]} 8. exd6 {[%clk 0:02:59.5]}
8... Qxd6 {[%clk 0:02:35.6]} 9. O-O {[%clk 0:02:56.9]} 9... Bg4 {[%clk
0:02:35.4]} 10. Re1 {[%clk 0:02:56]} 10... e6 {[%clk 0:02:30.2]} 11. Na3 {[%clk
0:02:53.9]} 11... O-O-O {[%clk 0:02:12.3]} 12. Qe2 {[%clk 0:02:47.6]} 12... Qf4
{[%clk 0:01:41.9]} 13. d4 {[%clk 0:02:29.4]} 13... cxd3 {[%clk 0:01:41.7]} 14.
Bxd3 {[%clk 0:02:24.6]} 14... Bxf3 {[%clk 0:01:24.3]} 15. Bxf4 {[%clk 0:02:14]}
15... Bxe2 {[%clk 0:01:24.1]} 16. Bxe2 {[%clk 0:02:14.9]} 16... Nd5 {[%clk
0:01:22.2]} 17. Bg3 {[%clk 0:02:13.5]} 17... e5 {[%clk 0:01:20.2]} 18. Nc4
{[%clk 0:02:12.2]} 18... f6 {[%clk 0:01:14.4]} 19. a4 {[%clk 0:02:12.3]} 19...
Kb8 {[%clk 0:01:05.9]} 20. a5 {[%clk 0:02:11.3]} 20... a6 {[%clk 0:01:04.1]} 21.
Bf3 {[%clk 0:02:09.9]} 21... Bc5 {[%clk 0:01:01.2]} 22. Rad1 {[%clk 0:02:08.2]}
22... Nf4 {[%clk 0:01:00.8]} 23. b4 {[%clk 0:02:02.3]} 23... Ba7 {[%clk
0:00:59]} 24. Bxf4 {[%clk 0:01:54.1]} 24... exf4 {[%clk 0:00:58.8]} 25. Bxc6
{[%clk 0:01:54.1]} 25... bxc6 {[%clk 0:00:58.3]} 26. Nd6 {[%clk 0:01:54.2]}
26... Rd7 {[%clk 0:00:55]} 27. Ne4 {[%clk 0:01:49.7]} 27... Rxd1 {[%clk
0:00:44.9]} 28. Rxd1 {[%clk 0:01:49.5]} 28... Re8 {[%clk 0:00:44.7]} 29. Nc5
{[%clk 0:01:44.2]} 29... Bxc5 {[%clk 0:00:44.4]} 30. bxc5 {[%clk 0:01:44.9]}
30... Kc7 {[%clk 0:00:44.8]} 31. Kf1 {[%clk 0:01:41.6]} 31... Re5 {[%clk
0:00:44.6]} 32. Re1 {[%clk 0:01:36.5]} 32... Kd7 {[%clk 0:00:41.3]} 33. Rd1+
{[%clk 0:01:27.2]} 33... Ke7 {[%clk 0:00:38.8]} 34. Rb1 {[%clk 0:01:26.4]} 34...
Rxc5 {[%clk 0:00:38.1]} 35. Rb7+ {[%clk 0:01:26.9]} 35... Ke6 {[%clk 0:00:35.5]}
36. Rxg7 {[%clk 0:01:26.6]} 36... h5 {[%clk 0:00:34.3]} 37. h4 {[%clk
0:01:22.7]} 37... Rxa5 {[%clk 0:00:33.9]} 38. Rc7 {[%clk 0:01:21]} 38... Rc5
{[%clk 0:00:33.7]} 39. Ra7 {[%clk 0:01:21.2]} 39... a5 {[%clk 0:00:29.9]} 40.
Ke2 {[%clk 0:01:19.7]} 40... Kd5 {[%clk 0:00:28.4]} 41. Kd3 {[%clk 0:01:17.5]}
41... Ke5 {[%clk 0:00:26.8]} 42. c4 {[%clk 0:01:14]} 42... Ke6 {[%clk
0:00:20.5]} 43. Kd4 {[%clk 0:01:12.2]} 43... Kd6 {[%clk 0:00:17.7]} 44. Rf7
{[%clk 0:01:09.5]} 44... Rf5 {[%clk 0:00:17.4]} 45. Ke4 {[%clk 0:01:07.8]} 45...
Ke6 {[%clk 0:00:17.8]} 46. Rc7 {[%clk 0:01:06.7]} 46... a4 {[%clk 0:00:14.7]}
47. Rxc6+ {[%clk 0:01:06]} 47... Kd7 {[%clk 0:00:10.3]} 48. Ra6 {[%clk 0:01:06]}
48... Re5+ {[%clk 0:00:08.7]} 49. Kxf4 {[%clk 0:01:06.2]} 49... Re2 {[%clk
0:00:09]} 50. Kf3 {[%clk 0:01:06.4]} 50... Ra2 {[%clk 0:00:07.2]} 51. Ra5 {[%clk
0:01:06.4]} 51... a3 {[%clk 0:00:07.4]} 52. Rxh5 {[%clk 0:01:06.6]} 52... Rb2
{[%clk 0:00:07.4]} 53. Ra5 {[%clk 0:01:06.6]} 53... Rb3+ {[%clk 0:00:07.8]} 54.
Kf4 {[%clk 0:01:05.2]} 54... Ke6 {[%clk 0:00:07.9]} 55. h5 {[%clk 0:01:04.8]}
55... Rc3 {[%clk 0:00:08]} 56. Ra6+ {[%clk 0:01:02.2]} 56... Kf7 {[%clk
0:00:07.4]} 57. Kf5 {[%clk 0:01:01.6]} 57... Rxc4 {[%clk 0:00:07.7]} 58. Ra7+
{[%clk 0:01:02]} 58... Kg8 {[%clk 0:00:06.9]} 59. f4 {[%clk 0:01:01.1]} 59...
Rc5+ {[%clk 0:00:04.9]} 60. Kg6 {[%clk 0:01:00.9]} 60... Rb5 {[%clk 0:00:04.1]}
61. Ra8+ {[%clk 0:01:00.6]} 1-0